[Event "*** Titled Tuesday Blitz"]
[Site "Chess.com"]
[Date "2019.11.05"]
[Round "3"]
[White "GM_shahin"]
[Black "wonderfultime"]
[Result "0-1"]
[WhiteElo "2732"]
[BlackElo "2960"]
[TimeControl "180+2"]
[EndTime "13:40:37 PST"]
[Termination "wonderfultime won by resignation"]

1. Nf3 {[%clk 0:03:01.9]} 1... Nf6 {[%clk 0:03:00.1]} 2. g3 {[%clk 0:03:03.2]}
2... d5 {[%clk 0:03:00.7]} 3. Bg2 {[%clk 0:03:04.4]} 3... c6 {[%clk 0:02:56.1]}
4. O-O {[%clk 0:03:05.5]} 4... Bg4 {[%clk 0:02:56.9]} 5. h3 {[%clk 0:03:02.5]}
5... Bh5 {[%clk 0:02:57.3]} 6. c4 {[%clk 0:03:03.4]} 6... e6 {[%clk 0:02:58.2]}
7. d3 {[%clk 0:03:03.8]} 7... Nbd7 {[%clk 0:02:55.8]} 8. cxd5 {[%clk 0:03:04.2]}
8... cxd5 {[%clk 0:02:52.3]} 9. Nc3 {[%clk 0:03:05.6]} 9... Bc5 {[%clk
0:02:35.9]} 10. Qb3 {[%clk 0:03:03.3]} 10... Qb6 {[%clk 0:02:34]} 11. Qxb6
{[%clk 0:02:53]} 11... Bxb6 {[%clk 0:02:32.6]} 12. Na4 {[%clk 0:02:51.9]} 12...
Ba5 {[%clk 0:02:19.5]} 13. Be3 {[%clk 0:02:39.6]} 13... O-O {[%clk 0:02:17.2]}
14. Rfc1 {[%clk 0:02:39.6]} 14... h6 {[%clk 0:02:12.7]} 15. a3 {[%clk 0:02:38]}
15... b5 {[%clk 0:02:00.8]} 16. Nc5 {[%clk 0:02:38.7]} 16... Rfc8 {[%clk
0:02:01.6]} 17. g4 {[%clk 0:02:33.1]} 17... Bg6 {[%clk 0:02:02.7]} 18. Nxd7
{[%clk 0:02:26.7]} 18... Nxd7 {[%clk 0:02:03.5]} 19. Nd4 {[%clk 0:02:28.3]}
19... Rxc1+ {[%clk 0:00:50.6]} 20. Rxc1 {[%clk 0:02:30.1]} 20... a6 {[%clk
0:00:52.5]} 21. Nc6 {[%clk 0:02:25.4]} 21... Bb6 {[%clk 0:00:53.4]} 22. Ne7+
{[%clk 0:02:17.9]} 22... Kf8 {[%clk 0:00:54]} 23. Nxg6+ {[%clk 0:02:10]} 23...
fxg6 {[%clk 0:00:55.9]} 24. Bxb6 {[%clk 0:02:10.1]} 24... Nxb6 {[%clk
0:00:57.8]} 25. Rc6 {[%clk 0:02:11.7]} 25... Rb8 {[%clk 0:00:59.2]} 26. Rxe6
{[%clk 0:02:11.8]} 26... g5 {[%clk 0:01:01.1]} 27. b4 {[%clk 0:01:56]} 27... Kf7
{[%clk 0:00:53.9]} 28. Rc6 {[%clk 0:01:57.2]} 28... Ke7 {[%clk 0:00:49]} 29. Bf3
{[%clk 0:01:42.8]} 29... d4 {[%clk 0:00:46.4]} 30. Be4 {[%clk 0:01:29.7]} 30...
Na4 {[%clk 0:00:46.7]} 31. Rxa6 {[%clk 0:01:29.1]} 31... Nc3 {[%clk 0:00:48.6]}
32. Bf3 {[%clk 0:01:22.7]} 32... Rc8 {[%clk 0:00:47.4]} 33. Kg2 {[%clk
0:01:20.8]} 33... Rc7 {[%clk 0:00:44.7]} 34. e3 {[%clk 0:01:14.7]} 34... dxe3
{[%clk 0:00:46]} 35. fxe3 {[%clk 0:01:16.6]} 35... Nb1 {[%clk 0:00:47.9]} 36. d4
{[%clk 0:00:58.3]} 36... Rc2+ {[%clk 0:00:48.5]} 37. Kg3 {[%clk 0:00:57.4]}
37... Rc3 {[%clk 0:00:41.7]} 38. Kf2 {[%clk 0:00:58.1]} 38... Nxa3 {[%clk
0:00:42.4]} 39. Ra7+ {[%clk 0:00:42.2]} 39... Kf8 {[%clk 0:00:35.6]} 40. Bd5
{[%clk 0:00:24.1]} 40... Nc2 {[%clk 0:00:36.5]} 41. e4 {[%clk 0:00:18.3]} 41...
Nxb4 {[%clk 0:00:32.4]} 42. Rf7+ {[%clk 0:00:19.8]} 42... Ke8 {[%clk 0:00:33]}
43. Be6 {[%clk 0:00:14.4]} 43... Nd3+ {[%clk 0:00:27.4]} 44. Kg1 {[%clk
0:00:14.2]} 44... Rc1+ {[%clk 0:00:27.8]} 45. Kh2 {[%clk 0:00:14.6]} 45... Rc2+
{[%clk 0:00:28.9]} 46. Kg3 {[%clk 0:00:15.5]} 46... Nf4 {[%clk 0:00:28.1]} 47.
d5 {[%clk 0:00:15.8]} 47... Nxe6 {[%clk 0:00:11.4]} 48. dxe6 {[%clk 0:00:17.7]}
48... Rc6 {[%clk 0:00:12.8]} 49. Rxg7 {[%clk 0:00:17.7]} 49... Rb6 {[%clk
0:00:14.1]} 50. Rc7 {[%clk 0:00:14]} 50... b4 {[%clk 0:00:15.3]} 51. Rc2 {[%clk
0:00:15.5]} 51... b3 {[%clk 0:00:16.4]} 52. Rb2 {[%clk 0:00:16.8]} 52... Ke7
{[%clk 0:00:18.3]} 53. Kf3 {[%clk 0:00:17.8]} 53... Kxe6 {[%clk 0:00:19.9]} 54.
Ke3 {[%clk 0:00:18.2]} 54... Ke5 {[%clk 0:00:21.4]} 55. Kd3 {[%clk 0:00:19.8]}
55... Rb8 {[%clk 0:00:22.3]} 56. Ke3 {[%clk 0:00:20.7]} 56... Rb7 {[%clk
0:00:23.1]} 57. Kd3 {[%clk 0:00:22.1]} 57... Rb4 {[%clk 0:00:24.5]} 58. Kc3
{[%clk 0:00:22.1]} 58... Rxe4 {[%clk 0:00:25.8]} 59. Kxb3 {[%clk 0:00:19.7]}
59... Re3+ {[%clk 0:00:26.8]} 60. Kc4 {[%clk 0:00:21.1]} 60... Rxh3 {[%clk
0:00:27.8]} 61. Rf2 {[%clk 0:00:19.5]} 61... Rh4 {[%clk 0:00:27.4]} 62. Re2+
{[%clk 0:00:08.8]} 62... Kf4 {[%clk 0:00:27.8]} 63. Kd3 {[%clk 0:00:07.9]} 63...
Rh3+ {[%clk 0:00:27.7]} 64. Kd4 {[%clk 0:00:07.6]} 64... Kxg4 {[%clk 0:00:28.6]}
65. Re6 {[%clk 0:00:07.4]} 65... Rh1 {[%clk 0:00:28.9]} 66. Re4+ {[%clk
0:00:08.2]} 66... Kf5 {[%clk 0:00:29]} 67. Re2 {[%clk 0:00:09.1]} 67... Rh3
{[%clk 0:00:27.3]} 68. Rf2+ {[%clk 0:00:10.2]} 68... Kg4 {[%clk 0:00:28.2]} 69.
Rg2+ {[%clk 0:00:11.6]} 69... Rg3 {[%clk 0:00:29.5]} 0-1

[Event "*** Titled Tuesday Blitz"]
[Site "Chess.com"]
[Date "2019.11.05"]
[Round "3"]
[White "Alliswell998"]
[Black "AndrBaryshpolets"]
[Result "0-1"]
[WhiteElo "2513"]
[BlackElo "2760"]
[TimeControl "180+2"]
[EndTime "13:40:42 PST"]
[Termination "AndrBaryshpolets won by resignation"]

1. e4 {[%clk 0:03:01.9]} 1... e5 {[%clk 0:03:00.9]} 2. Nf3 {[%clk 0:03:02.3]}
2... Nc6 {[%clk 0:03:02.6]} 3. Bc4 {[%clk 0:02:59.9]} 3... Bc5 {[%clk
0:03:03.4]} 4. c3 {[%clk 0:03:00.6]} 4... Nf6 {[%clk 0:03:04.7]} 5. d3 {[%clk
0:03:01.8]} 5... O-O {[%clk 0:03:03.1]} 6. Bb3 {[%clk 0:03:02.2]} 6... d5 {[%clk
0:03:02.6]} 7. Qe2 {[%clk 0:02:59.1]} 7... dxe4 {[%clk 0:02:59.5]} 8. dxe4
{[%clk 0:02:59.8]} 8... Qe7 {[%clk 0:03:01]} 9. Bg5 {[%clk 0:02:54.5]} 9... h6
{[%clk 0:02:59.1]} 10. Bh4 {[%clk 0:02:54.7]} 10... Be6 {[%clk 0:02:50.7]} 11.
Bc2 {[%clk 0:02:53]} 11... a5 {[%clk 0:02:50.8]} 12. a4 {[%clk 0:02:50.1]} 12...
Bd6 {[%clk 0:02:20.5]} 13. Nbd2 {[%clk 0:02:45.1]} 13... g5 {[%clk 0:02:02]} 14.
Bg3 {[%clk 0:02:36.8]} 14... Rfe8 {[%clk 0:01:51.4]} 15. Nc4 {[%clk 0:02:30.3]}
15... Bg4 {[%clk 0:01:44.3]} 16. Ne3 {[%clk 0:02:27.1]} 16... Be6 {[%clk
0:01:39.2]} 17. h4 {[%clk 0:02:20.4]} 17... g4 {[%clk 0:01:36.9]} 18. Nd2 {[%clk
0:02:17.6]} 18... h5 {[%clk 0:01:26.1]} 19. f3 {[%clk 0:02:08.7]} 19... Qf8
{[%clk 0:01:11.6]} 20. O-O-O {[%clk 0:01:53.1]} 20... Ne7 {[%clk 0:01:02.2]} 21.
Rhf1 {[%clk 0:01:39.6]} 21... Ng6 {[%clk 0:01:00.9]} 22. fxg4 {[%clk 0:01:34.4]}
22... Nxg4 {[%clk 0:01:02.1]} 23. Nf5 {[%clk 0:01:27.8]} 23... Nf4 {[%clk
0:00:52.9]} 24. Bxf4 {[%clk 0:01:25.8]} 24... exf4 {[%clk 0:00:54.8]} 25. Nxd6
{[%clk 0:01:05.1]} 25... Qxd6 {[%clk 0:00:46.3]} 26. Nf3 {[%clk 0:00:57.5]}
26... Qc5 {[%clk 0:00:44.1]} 27. Ng5 {[%clk 0:00:51.6]} 27... Qe3+ {[%clk
0:00:37.6]} 28. Qd2 {[%clk 0:00:42.7]} 28... Rad8 {[%clk 0:00:31]} 29. Qxe3
{[%clk 0:00:43.5]} 29... Nxe3 {[%clk 0:00:32.9]} 30. Rxd8 {[%clk 0:00:44.2]}
30... Rxd8 {[%clk 0:00:34.7]} 31. Rxf4 {[%clk 0:00:38.6]} 31... Nxg2 {[%clk
0:00:35.4]} 32. Nxe6 {[%clk 0:00:30]} 32... fxe6 {[%clk 0:00:35.9]} 33. Rf6
{[%clk 0:00:31.1]} 33... Re8 {[%clk 0:00:17.7]} 34. Bb3 {[%clk 0:00:28.5]} 34...
Kg7 {[%clk 0:00:18.9]} 35. Rf2 {[%clk 0:00:20.2]} 35... Nxh4 {[%clk 0:00:19.8]}
36. Rh2 {[%clk 0:00:21.4]} 36... Ng6 {[%clk 0:00:14.3]} 37. Rxh5 {[%clk
0:00:22.2]} 37... e5 {[%clk 0:00:16]} 38. Rf5 {[%clk 0:00:21.7]} 38... Rf8
{[%clk 0:00:16.4]} 39. Kd2 {[%clk 0:00:13.4]} 39... Rxf5 {[%clk 0:00:16.4]} 40.
exf5 {[%clk 0:00:15.3]} 40... Nf4 {[%clk 0:00:17.8]} 41. Ke3 {[%clk 0:00:15]}
41... Kf6 {[%clk 0:00:19.4]} 42. Ke4 {[%clk 0:00:16.2]} 42... Ne2 {[%clk
0:00:20]} 43. Bc2 {[%clk 0:00:13]} 43... Ng3+ {[%clk 0:00:19]} 44. Kd5 {[%clk
0:00:14.4]} 44... Nxf5 {[%clk 0:00:20.7]} 45. b4 {[%clk 0:00:13.9]} 45... Ne7+
{[%clk 0:00:11.7]} 46. Kc5 {[%clk 0:00:14.2]} 46... b6+ {[%clk 0:00:13.4]} 47.
Kb5 {[%clk 0:00:14.6]} 47... Nd5 {[%clk 0:00:15]} 48. bxa5 {[%clk 0:00:15]}
48... bxa5 {[%clk 0:00:13.9]} 49. c4 {[%clk 0:00:14.9]} 49... Ne3 {[%clk
0:00:14.7]} 50. Bd3 {[%clk 0:00:14.1]} 50... Nd1 {[%clk 0:00:13.6]} 51. Kxa5
{[%clk 0:00:14.5]} 51... Ke6 {[%clk 0:00:14.7]} 52. Kb5 {[%clk 0:00:14.2]} 52...
Kd6 {[%clk 0:00:15.9]} 53. c5+ {[%clk 0:00:15.3]} 53... Kd5 {[%clk 0:00:17.3]}
54. Bc4+ {[%clk 0:00:16.6]} 54... Kd4 {[%clk 0:00:17.9]} 55. Bf1 {[%clk
0:00:16]} 55... Nc3+ {[%clk 0:00:19]} 56. Kb4 {[%clk 0:00:15.7]} 56... c6 {[%clk
0:00:17]} 57. a5 {[%clk 0:00:16.4]} 57... Nd5+ {[%clk 0:00:18.5]} 58. Kb3 {[%clk
0:00:14]} 58... Kxc5 {[%clk 0:00:20.4]} 59. Bg2 {[%clk 0:00:09.3]} 59... Nc7
{[%clk 0:00:20.8]} 60. Bf1 {[%clk 0:00:09.5]} 60... Ne6 {[%clk 0:00:21.5]} 61.
Kc3 {[%clk 0:00:08.8]} 61... Nd4 {[%clk 0:00:22]} 62. Kd3 {[%clk 0:00:09]} 62...
Nf3 {[%clk 0:00:16.5]} 63. Be2 {[%clk 0:00:07.5]} 63... Ng5 {[%clk 0:00:17.2]}
64. Bf1 {[%clk 0:00:07.8]} 64... Kb5 {[%clk 0:00:16.2]} 65. Be2 {[%clk
0:00:06.9]} 65... Kxa5 {[%clk 0:00:17.3]} 66. Kc4 {[%clk 0:00:08.8]} 66... Kb6
{[%clk 0:00:18.8]} 67. Bd3 {[%clk 0:00:08.9]} 67... Kc7 {[%clk 0:00:20.2]} 68.
Kc5 {[%clk 0:00:10]} 68... Ne6+ {[%clk 0:00:21.6]} 69. Kc4 {[%clk 0:00:10.5]}
69... Kd6 {[%clk 0:00:23.5]} 70. Bf5 {[%clk 0:00:11.8]} 70... Nc5 {[%clk
0:00:23.5]} 71. Kc3 {[%clk 0:00:12.4]} 71... Kd5 {[%clk 0:00:24.3]} 72. Bh7
{[%clk 0:00:14.3]} 72... Ne4+ {[%clk 0:00:24.9]} 73. Kd3 {[%clk 0:00:15.2]}
73... Nf6 {[%clk 0:00:26.6]} 74. Bg6 {[%clk 0:00:15.7]} 74... e4+ {[%clk
0:00:28]} 75. Ke3 {[%clk 0:00:17.1]} 75... Ke5 {[%clk 0:00:29.3]} 76. Bf7 {[%clk
0:00:16]} 76... Nd5+ {[%clk 0:00:30.3]} 77. Kd2 {[%clk 0:00:16.8]} 77... Kd4
{[%clk 0:00:31.8]} 78. Bh5 {[%clk 0:00:17.3]} 78... c5 {[%clk 0:00:33.2]} 79.
Kc2 {[%clk 0:00:17.6]} 79... c4 {[%clk 0:00:34.8]} 80. Bg4 {[%clk 0:00:18.2]}
80... Ne3+ {[%clk 0:00:35.5]} 81. Kd2 {[%clk 0:00:19.6]} 81... Nxg4 {[%clk
0:00:37.4]} 0-1

[Event "*** Titled Tuesday Blitz"]
[Site "Chess.com"]
[Date "2019.11.05"]
[Round "3"]
[White "AryanTari"]
[Black "Mikhail_Golubev"]
[Result "1-0"]
[WhiteElo "2847"]
[BlackElo "2616"]
[TimeControl "180+2"]
[EndTime "13:41:07 PST"]
[Termination "AryanTari won by resignation"]

1. e4 {[%clk 0:03:01.9]} 1... c5 {[%clk 0:03:00.6]} 2. Nf3 {[%clk 0:03:01.5]}
2... d6 {[%clk 0:03:01]} 3. Nc3 {[%clk 0:03:02]} 3... Nf6 {[%clk 0:02:52.5]} 4.
e5 {[%clk 0:03:02.3]} 4... dxe5 {[%clk 0:02:53.1]} 5. Nxe5 {[%clk 0:03:04.2]}
5... a6 {[%clk 0:02:35.8]} 6. g3 {[%clk 0:03:03.5]} 6... Qc7 {[%clk 0:02:30.6]}
7. d4 {[%clk 0:03:04.1]} 7... cxd4 {[%clk 0:02:29.1]} 8. Qxd4 {[%clk 0:03:06]}
8... Nc6 {[%clk 0:02:27]} 9. Nxc6 {[%clk 0:03:06.9]} 9... Qxc6 {[%clk 0:02:27]}
10. Bg5 {[%clk 0:02:59.9]} 10... e6 {[%clk 0:01:28.7]} 11. Bxf6 {[%clk 0:02:42]}
11... gxf6 {[%clk 0:01:29.6]} 12. Qxf6 {[%clk 0:02:33.8]} 12... Rg8 {[%clk
0:01:17]} 13. O-O-O {[%clk 0:02:34.6]} 13... Bd7 {[%clk 0:00:47.4]} 14. Bd3
{[%clk 0:01:29.8]} 14... Bg7 {[%clk 0:00:40.3]} 15. Qg5 {[%clk 0:01:30.4]} 15...
Kf8 {[%clk 0:00:35]} 16. Bxh7 {[%clk 0:01:24.7]} 16... Rh8 {[%clk 0:00:34.7]}
17. Be4 {[%clk 0:01:26.3]} 17... Bh6 {[%clk 0:00:27.3]} 18. Qxh6+ {[%clk
0:01:20.9]} 18... Rxh6 {[%clk 0:00:28.3]} 19. Bxc6 {[%clk 0:01:22.6]} 19... Bxc6
{[%clk 0:00:29.4]} 20. Rhf1 {[%clk 0:01:15.2]} 20... Rxh2 {[%clk 0:00:29.5]} 21.
f4 {[%clk 0:00:58.6]} 21... Rg2 {[%clk 0:00:21]} 22. Rg1 {[%clk 0:00:58.3]}
22... Ke7 {[%clk 0:00:17.3]} 23. Rxg2 {[%clk 0:00:58.2]} 23... Bxg2 {[%clk
0:00:17.9]} 24. Rd2 {[%clk 0:00:59.8]} 24... Bc6 {[%clk 0:00:18.2]} 25. b3
{[%clk 0:00:38.1]} 25... Rg8 {[%clk 0:00:18.2]} 26. Rd3 {[%clk 0:00:38.8]} 26...
Rh8 {[%clk 0:00:19.1]} 27. a4 {[%clk 0:00:39.6]} 27... Rh2 {[%clk 0:00:16.7]}
28. Rd2 {[%clk 0:00:35.6]} 28... Rh1+ {[%clk 0:00:15.4]} 29. Rd1 {[%clk
0:00:34.2]} 29... Rh2 {[%clk 0:00:16.2]} 30. Rd3 {[%clk 0:00:28]} 30... Kf6
{[%clk 0:00:15.6]} 31. b4 {[%clk 0:00:27.2]} 31... Kf5 {[%clk 0:00:11.5]} 32. b5
{[%clk 0:00:28.5]} 32... axb5 {[%clk 0:00:12.3]} 33. axb5 {[%clk 0:00:30.4]}
33... Bh1 {[%clk 0:00:12.6]} 34. b6 {[%clk 0:00:29.1]} 34... Bc6 {[%clk
0:00:11.7]} 35. Rd6 {[%clk 0:00:27.2]} 35... Bf3 {[%clk 0:00:09.9]} 36. Nb5
{[%clk 0:00:25.8]} 36... Kg4 {[%clk 0:00:10]} 37. Nd4 {[%clk 0:00:26.1]} 37...
Be4 {[%clk 0:00:10.3]} 38. Rd7 {[%clk 0:00:27]} 38... Kxg3 {[%clk 0:00:10.6]}
39. Rxf7 {[%clk 0:00:28.4]} 39... Kf2 {[%clk 0:00:09.8]} 40. Nxe6 {[%clk
0:00:26]} 40... Ke3 {[%clk 0:00:10.5]} 41. Rc7 {[%clk 0:00:27.7]} 41... Rh6
{[%clk 0:00:10.2]} 42. Rc3+ {[%clk 0:00:26.8]} 42... Ke2 {[%clk 0:00:09]} 43.
Nd4+ {[%clk 0:00:22.2]} 43... Kf2 {[%clk 0:00:07.6]} 44. Rb3 {[%clk 0:00:22.3]}
44... Rf6 {[%clk 0:00:06.9]} 45. Nb5 {[%clk 0:00:20.4]} 45... Rxb6 {[%clk
0:00:05.5]} 46. Kb2 {[%clk 0:00:19.4]} 46... Bd5 {[%clk 0:00:04.9]} 47. Rb4
{[%clk 0:00:18.4]} 47... Bc6 {[%clk 0:00:05.6]} 48. c4 {[%clk 0:00:19.2]} 48...
Kf3 {[%clk 0:00:05.1]} 49. Nd4+ {[%clk 0:00:19.3]} 49... Ke4 {[%clk 0:00:03.2]}
50. Rxb6 {[%clk 0:00:20.8]} 50... Kxd4 {[%clk 0:00:04.5]} 51. f5 {[%clk
0:00:22]} 51... Ke5 {[%clk 0:00:05.4]} 52. Kc3 {[%clk 0:00:22.8]} 52... Kxf5
{[%clk 0:00:06.5]} 53. Kd4 {[%clk 0:00:24.4]} 53... Ke6 {[%clk 0:00:06.8]} 54.
Kc5 {[%clk 0:00:25.7]} 54... Kd7 {[%clk 0:00:07.6]} 55. Rb1 {[%clk 0:00:27.3]}
55... Kc7 {[%clk 0:00:08.6]} 56. Rg1 {[%clk 0:00:28.3]} 56... b6+ {[%clk
0:00:09.3]} 57. Kd4 {[%clk 0:00:29.9]} 57... Kd6 {[%clk 0:00:10.4]} 58. Rg6+
{[%clk 0:00:31.1]} 58... Kc7 {[%clk 0:00:11.4]} 59. Rh6 {[%clk 0:00:32.3]} 59...
Be8 {[%clk 0:00:10.6]} 60. Rf6 {[%clk 0:00:31.8]} 60... Bc6 {[%clk 0:00:10.2]}
61. Kc3 {[%clk 0:00:33.1]} 61... Bd7 {[%clk 0:00:09.7]} 62. Kd3 {[%clk 0:00:34]}
62... Bc6 {[%clk 0:00:10.7]} 63. Kd4 {[%clk 0:00:35.5]} 63... Kd7 {[%clk
0:00:10.1]} 64. Rf1 {[%clk 0:00:32.9]} 64... Kc7 {[%clk 0:00:10.3]} 65. Rf7+
{[%clk 0:00:33.9]} 65... Kd6 {[%clk 0:00:10.9]} 66. Rg7 {[%clk 0:00:35.5]} 66...
Ke6 {[%clk 0:00:10.7]} 67. Rg8 {[%clk 0:00:31.7]} 67... Kd6 {[%clk 0:00:11.2]}
68. Rc8 {[%clk 0:00:32.2]} 68... Kd7 {[%clk 0:00:11.8]} 69. Rh8 {[%clk
0:00:32.9]} 69... Kd6 {[%clk 0:00:12.4]} 70. Rh6+ {[%clk 0:00:33.8]} 70... Kc7
{[%clk 0:00:12.4]} 71. Ke5 {[%clk 0:00:34.8]} 71... Bd7 {[%clk 0:00:12]} 72. Rh7
{[%clk 0:00:32.6]} 72... Kc6 {[%clk 0:00:13.2]} 73. Kd4 {[%clk 0:00:34.2]} 73...
Kd6 {[%clk 0:00:13.9]} 74. Rh6+ {[%clk 0:00:34.1]} 74... Kc7 {[%clk 0:00:14.9]}
75. Kd5 {[%clk 0:00:35.8]} 75... Ba4 {[%clk 0:00:14.5]} 76. Rh7+ {[%clk
0:00:36.7]} 76... Kc8 {[%clk 0:00:15.2]} 77. Kd6 {[%clk 0:00:36.8]} 77... Kb8
{[%clk 0:00:16.1]} 78. Rh4 {[%clk 0:00:36.4]} 78... Kb7 {[%clk 0:00:12.9]} 79.
c5 {[%clk 0:00:36]} 79... Be8 {[%clk 0:00:09.8]} 80. c6+ {[%clk 0:00:36.8]} 1-0

[Event "*** Titled Tuesday Blitz"]
[Site "Chess.com"]
[Date "2019.11.05"]
[Round "3"]
[White "Guenplen"]
[Black "anesar92"]
[Result "1/2-1/2"]
[WhiteElo "2976"]
[BlackElo "2682"]
[TimeControl "180+2"]
[EndTime "13:41:10 PST"]
[Termination "Game drawn by repetition"]

1. Nf3 {[%clk 0:03:01.9]} 1... Nf6 {[%clk 0:02:59.9]} 2. c4 {[%clk 0:03:02.7]}
2... g6 {[%clk 0:03:00.7]} 3. Nc3 {[%clk 0:03:03.2]} 3... Bg7 {[%clk 0:03:02.3]}
4. g3 {[%clk 0:03:04.6]} 4... b6 {[%clk 0:02:59.9]} 5. Bg2 {[%clk 0:03:04.6]}
5... Bb7 {[%clk 0:03:01.3]} 6. O-O {[%clk 0:03:05.7]} 6... O-O {[%clk
0:03:02.8]} 7. d4 {[%clk 0:02:53]} 7... Ne4 {[%clk 0:03:03.2]} 8. Bd2 {[%clk
0:02:54.4]} 8... Nxd2 {[%clk 0:03:02]} 9. Qxd2 {[%clk 0:02:55.3]} 9... d6 {[%clk
0:02:58.2]} 10. e4 {[%clk 0:02:51.4]} 10... Nd7 {[%clk 0:02:58.4]} 11. Rad1
{[%clk 0:02:49.8]} 11... a5 {[%clk 0:02:59.2]} 12. Rfe1 {[%clk 0:02:50.5]} 12...
e5 {[%clk 0:02:57.9]} 13. b3 {[%clk 0:02:43.1]} 13... exd4 {[%clk 0:02:49.9]}
14. Nxd4 {[%clk 0:02:45]} 14... Nc5 {[%clk 0:02:51.2]} 15. Nd5 {[%clk 0:02:40]}
15... Re8 {[%clk 0:02:46.8]} 16. h4 {[%clk 0:02:38.2]} 16... Ne6 {[%clk
0:02:44.3]} 17. Nxe6 {[%clk 0:02:32]} 17... fxe6 {[%clk 0:02:43]} 18. Nc3 {[%clk
0:02:29.9]} 18... Rf8 {[%clk 0:02:43.1]} 19. Nb5 {[%clk 0:02:28.3]} 19... Bc6
{[%clk 0:02:37.5]} 20. Qe3 {[%clk 0:02:06.8]} 20... Qe7 {[%clk 0:02:30.7]} 21.
e5 {[%clk 0:02:04.1]} 21... d5 {[%clk 0:02:03.2]} 22. Nd4 {[%clk 0:02:00.8]}
22... Bb7 {[%clk 0:02:04]} 23. cxd5 {[%clk 0:01:55.6]} 23... exd5 {[%clk
0:02:03.9]} 24. f4 {[%clk 0:01:56.6]} 24... c5 {[%clk 0:02:02.9]} 25. Nb5 {[%clk
0:01:57.1]} 25... d4 {[%clk 0:02:02.9]} 26. Qf2 {[%clk 0:01:53.3]} 26... Bxg2
{[%clk 0:02:01]} 27. Qxg2 {[%clk 0:01:55.2]} 27... a4 {[%clk 0:02:02.1]} 28. Nd6
{[%clk 0:01:49.7]} 28... axb3 {[%clk 0:02:00]} 29. axb3 {[%clk 0:01:51.6]} 29...
Kh8 {[%clk 0:02:01.1]} 30. Ra1 {[%clk 0:01:49]} 30... Rxa1 {[%clk 0:01:49.5]}
31. Rxa1 {[%clk 0:01:50.9]} 31... Bxe5 {[%clk 0:01:19.4]} 32. fxe5 {[%clk
0:01:48.1]} 32... Qxe5 {[%clk 0:01:21.3]} 33. Nc4 {[%clk 0:01:49.3]} 33... Qe6
{[%clk 0:01:22.1]} 34. Rf1 {[%clk 0:01:39.6]} 34... Rxf1+ {[%clk 0:01:20.1]} 35.
Kxf1 {[%clk 0:01:35.3]} 35... b5 {[%clk 0:01:13.4]} 36. Qa8+ {[%clk 0:01:24]}
36... Kg7 {[%clk 0:01:14.4]} 37. Qb7+ {[%clk 0:01:24.9]} 37... Kh6 {[%clk
0:01:15.6]} 38. Qxb5 {[%clk 0:01:25.6]} 38... Qf5+ {[%clk 0:01:16.8]} 39. Ke2
{[%clk 0:01:14.6]} 39... Qe4+ {[%clk 0:01:15.9]} 40. Kd2 {[%clk 0:01:06.3]}
40... Qg2+ {[%clk 0:01:16.8]} 41. Kc1 {[%clk 0:01:07.4]} 41... Qxg3 {[%clk
0:01:10]} 42. Qxc5 {[%clk 0:00:55]} 42... Qc3+ {[%clk 0:01:09.7]} 43. Kb1 {[%clk
0:00:53.9]} 43... Qxb3+ {[%clk 0:01:10.3]} 44. Nb2 {[%clk 0:00:55.1]} 44... Qe3
{[%clk 0:01:08.4]} 45. Qd5 {[%clk 0:00:47.8]} 45... Qe1+ {[%clk 0:01:07.5]} 46.
Ka2 {[%clk 0:00:47.1]} 46... Qxh4 {[%clk 0:01:09.4]} 47. Nd3 {[%clk 0:00:42.9]}
47... Qg5 {[%clk 0:01:08]} 48. Qxd4 {[%clk 0:00:42]} 48... Qf5 {[%clk
0:01:04.5]} 49. Ne5 {[%clk 0:00:38.1]} 49... g5 {[%clk 0:01:00.2]} 50. Ng4+
{[%clk 0:00:25.9]} 50... Kh5 {[%clk 0:00:59.6]} 51. Nf6+ {[%clk 0:00:26.2]}
51... Kg6 {[%clk 0:01:00.4]} 52. Nd5 {[%clk 0:00:27.3]} 52... Qe6 {[%clk
0:00:59.9]} 53. Kb2 {[%clk 0:00:26]} 53... h5 {[%clk 0:00:58.3]} 54. Qd3+ {[%clk
0:00:26.6]} 54... Kh6 {[%clk 0:00:57.9]} 55. Qf3 {[%clk 0:00:22.4]} 55... h4
{[%clk 0:00:55.2]} 56. Qf8+ {[%clk 0:00:21]} 56... Kh5 {[%clk 0:00:51.2]} 57.
Qf3+ {[%clk 0:00:17.6]} 57... Kg6 {[%clk 0:00:49.5]} 58. Qd3+ {[%clk 0:00:17.8]}
58... Kh6 {[%clk 0:00:50]} 59. Ne3 {[%clk 0:00:16.9]} 59... Qf6+ {[%clk
0:00:47.4]} 60. Ka2 {[%clk 0:00:15.3]} 60... Qe6+ {[%clk 0:00:47.7]} 61. Kb2
{[%clk 0:00:16.6]} 61... Qf6+ {[%clk 0:00:48.6]} 62. Ka3 {[%clk 0:00:18]} 62...
Qe7+ {[%clk 0:00:47.5]} 63. Ka4 {[%clk 0:00:18.2]} 63... Qa7+ {[%clk 0:00:47]}
64. Kb5 {[%clk 0:00:18.6]} 64... Qb7+ {[%clk 0:00:47.6]} 65. Kc5 {[%clk
0:00:19.7]} 65... Qc7+ {[%clk 0:00:45.7]} 66. Kb4 {[%clk 0:00:18.1]} 66... Qb6+
{[%clk 0:00:46.1]} 67. Ka3 {[%clk 0:00:18.5]} 67... Qa7+ {[%clk 0:00:46.7]} 68.
Kb2 {[%clk 0:00:19.5]} 68... Qg7+ {[%clk 0:00:48.2]} 69. Kb1 {[%clk 0:00:19.9]}
69... Qg6 {[%clk 0:00:46.2]} 70. Nf5+ {[%clk 0:00:17.4]} 70... Kh5 {[%clk
0:00:45.7]} 71. Ka2 {[%clk 0:00:13.8]} 71... g4 {[%clk 0:00:44.1]} 72. Qd5
{[%clk 0:00:14.2]} 72... Qg5 {[%clk 0:00:40.9]} 73. Qf7+ {[%clk 0:00:14.1]}
73... Qg6 {[%clk 0:00:41.5]} 74. Qd5 {[%clk 0:00:13.3]} 74... Qg5 {[%clk
0:00:42.1]} 75. Qf7+ {[%clk 0:00:06.7]} 75... Qg6 {[%clk 0:00:43.1]} 76. Qd5
{[%clk 0:00:07.7]} 1/2-1/2